{"text_format":"2","workbook":"xlsx","n_sheets":1,"sheets":["Area Istruttori"],"not_rendered":{"charts":0,"images":0,"macros":0,"external_links":0,"defined_names":0,"comments":0,"pivot_tables":0},"unopened":[],"bounds":{"document_bytes":16777216,"sheet_cells":100000,"run_cost":"one","rows_first":2000,"rows_last":500,"rows_between":2000,"halvings":0,"cell_chars":16384,"cell_head_chars":4096},"cells_cut":0,"cells_raw":0,"read":"whole","date_system":"1900"}

{"sheet":"Area Istruttori","index":0,"n_rows":110,"n_cols":7,"rows_kept":110,"cut":false,"hidden":false,"merged":[[92,3,92,4],[95,1,95,2],[96,1,96,2],[97,1,97,2],[18,2,18,4],[89,3,89,4],[81,4,81,5],[86,3,86,4],[64,0,64,6],[57,0,57,6],[85,0,85,4],[81,2,81,3],[60,2,60,6],[41,1,41,2],[91,3,91,4],[87,3,87,4],[109,3,109,5],[98,1,98,2],[109,0,109,1],[101,0,101,6],[103,0,103,6],[88,3,88,4],[90,3,90,4],[61,2,61,6],[79,2,79,3],[80,2,80,3],[80,4,80,5],[79,4,79,5],[78,2,78,3],[78,4,78,5],[82,2,82,3],[82,4,82,5],[46,0,46,6],[47,0,47,1],[54,0,54,1],[59,2,59,6],[58,2,58,6],[42,1,42,2],[43,1,43,2],[9,4,9,6],[19,2,19,4],[26,4,26,6],[11,5,11,6],[20,2,20,4],[21,2,21,4],[14,3,14,6],[15,3,15,6],[10,2,10,3],[10,0,10,1],[11,0,11,1],[30,0,30,1],[29,0,29,5],[25,2,25,3],[0,0,0,6],[1,0,1,6],[3,0,3,6],[4,0,4,6],[24,0,24,3],[6,0,6,6],[20,0,21,0],[9,0,9,1],[14,0,14,2],[15,0,15,2],[10,5,10,6],[11,2,11,3],[8,4,8,6],[8,0,8,1],[26,2,26,3],[39,1,39,2],[40,1,40,2],[31,0,31,1],[32,0,32,1],[36,0,36,2],[37,1,37,2],[38,1,38,2],[33,0,33,1]]}
["COMUNE DI MONNO"]
["(Provincia di Brescia)"]
[]
["SCHEDA DI VALUTAZIONE "]
["ISTRUTTORE"]
[]
["ANNO"]
[]
["Dipendente",null,"Data di nascita","Data di assunzione","Servizio"]
[]
["Area",null,"Profilo professionale",null,"Anzianità nell'Ente","Anzianità nel profilo professionale ricoperto"]
["ISTRUTTORE"]
[]
[]
["Valutatore",null,null,"Periodo di valutazione"]
[]
[]
[]
["Ambito","Macro area valutativa","Elementi di valutazione",null,null,"Peso"]
["Performance organizzativa","Risultato di ente","Risultati della salute economico - finanziaria, della salute organizzativa, degli impatti e della performance complessiva dell'Ente, espressi in termini percentuali in un unico valore di sintesi",null,null,10]
["Performance individuale","Risultato individuale","Grado di raggiungimento degli obiettivi e delle attività strutturali di PEG, assegnati al valutato o in cui è coinvolto, misurati attraverso appositi indicatori",null,null,50]
[null,"Competenze professionali/comportamentali",null,null,null,40]
[{"$nulls":5},{"$f":"SUM(F20:F22)","v":100}]
[]
["Risultato di ente (peso 10)"]
["Valore raggiunto","Peso","Punteggio finale"]
[{"$f":"IF(C27>50,\"il punteggio non può essere superiore a 50\",C27*2/100)","v":0},10,null,null,"*valore da prendere dalla scheda DIMENSIONI PERFORMANCE ORGANIZZATIVA"]
[]
[]
["Risultato individuale (peso 50)"]
["Obiettivi assegnati",null,"Valore raggiunto","Peso","Apporto individuale*","Totale"]
[{"$nulls":5},{"$f":"C32*D32*E32/2","v":0}]
[{"$nulls":5},0]
[{"$nulls":5},0]
["TOTALI",null,null,50,null,{"$f":"SUM(F32:F34)","v":0}]
[]
["*Apporto individuale al raggiungimento degli obiettivi"]
["Valore","Livello di apporto"]
[0,"Nessun apporto"]
[1,"Apporto insufficiente"]
[2,"Apporto sufficiente"]
[3,"Apporto buono"]
[4,"Apporto discreto"]
[5,"Apporto ottimo"]
[]
[]
["Competenze professionali / comportamentali  (peso 40)"]
["Competenze assegnate",null,"Grading del profilo professionale","Peso","*Valutazione (da 1 a 4)","Verifica intermedia","Punteggio finale"]
[null,null,null,{"$f":"IF(C49=0,\" \",C49/($C$55/$D$56))","v":" "},null,null,{"$f":"IF(E49=0,\" \",(D49*E49)*1.25)","v":" "}]
[null,null,null,{"$f":"IF(C50=0,\" \",C50/($C$55/$D$56))","v":" "},null,null," "]
[null,null,null," ",null,null," "]
[null,null,null," ",null,null,{"$f":"IF(E52=0,\" \",(D52*E52)*1.25)","v":" "}]
[null,null,null," ",null,null," "]
[null,null,null," ",null,null," "]
["TOTALI",null,{"$f":"SUM(C49:C54)","v":0},{"$f":"SUM(D49:D54)","v":0},null,null,{"$f":"SUM(G49:G54)","v":0}]
[null,null,null,{"$f":"F22","v":40}]
[]
["*Valutazione"]
[1,"Possesso della competenza limitata agli elementi di base","Capacità di applicazione parziale e limitata a contesti di bassa complessità"]
[2,"Discreto possesso della competenza ","Capacità di applicazione discreta anche in contesti di media complessità"]
[3,"Possesso ampio ed approfondito della competenza","Capacità di applicazione discreta anche in contesti di rilevante complessità"]
[4,"Specialista della competenza e punto di riferimento professionale","Punto di forza"]
[]
[]
["Valutazione complessiva"]
["Area valutativa","Peso","Punteggio max","% Punteggio minimo","Punteggio minimo","Verifica intermedia","Punteggio finale"]
["Risultato di ente",0.1,50,0.5,{"$f":"C67*D67","v":25},null,{"$f":"C27","v":0}]
["Risultato individuale",0.5,150,0.5,{"$f":"C68*D68","v":75},null,{"$f":"F35","v":0}]
["Competenze professionali/  comportamentali",0.4,300,0.6,{"$f":"C69*D69","v":180},null,{"$f":"G55","v":0}]
["TOTALI",1,500,null,{"$f":"E67+E68+E69","v":280},null,{"$f":"SUM(G67:G69)","v":0}]
[]
[]
[]
[]
[]
[]
["CORRETTIVO GIORNI DI ASSENZA NELL’ANNO                            GIORNI DI ASSENZA       "]
[]
["Scaglioni","Giorni di assenza","Calcolo punteggio",null,"Punteggio max per scaglione"]
[3,"Oltre 61 gg","n. gg x 1   ",null,"(non definibile a priori)"]
[2,"Da 31 a 60 gg.","n. gg x 0,7  ",null,42]
[1,"Da 8 a 30 gg.","n. gg x 0,5  ",null,15]
[0,"da 1 a 7 gg","-",null,0]
[]
[]
["FASCE DI RIFERIMENTO"]
["Range Punti","Fasce","Produttività e Risultato Posiz. Organizz.","Coeff. Progr. Orizzontale"]
["Da 451 a 500 punti","A",100,10]
["Da 400 a 450 punti","B",90,8]
["Da 351 a 399 punti","C",79.900000000000006,6]
["Da 301 a 350 punti","D",70,4]
["Da 280 a 300 punti","E",60,2]
["Da 0 a 279 punti","F",0,0]
[]
[]
[null,"VALUTAZIONE",null,{"$f":"G70","v":0}]
[null,"CORRETTIVO ASSENZE",null,{"$f":"IF(F77<=15,F77*0.5,IF(F77<=35,7.5+(F77-15)*0.7,21.5+(F77-35)))","v":0}]
[null,"PUNTEGGIO COMPLESSIVO FINALE",null,{"$f":"D96-D97","v":0}]
[null,"FASCIA DI RIFERIMENTO",null,{"$f":"IF(D98<279,\"F\",IF(D98<=300,\"E\",IF(D98<=350,\"D\",IF(D98<=400,\"C\",IF(D98<=450,\"B\",IF(D98<=500,\"A\"))))))","v":"F"}]
[]
[]
["Osservazioni del valutatore: "]
[]
["Osservazioni del valutato: "]
[]
[]
["Monno , __________________"]
[]
[]
["Firma del Valutatore",null,null,"Firma del Valutato"]